Cogmind - Beta 14 @@@ ROGUE MODE // 2024.08.31 @ 21:11:51 Player: Unit6544 Result: Destroyed by G-47 Trooper with Particle Gun Performance ------------- Evolutions (1) 500 Regions Visited (2) 400 Robots Destroyed (5) 25 Value Destroyed (181) 181 Prototype IDs (2) 40 Alien Tech Used (0) 0 Bonus (0) 0 TOTAL SCORE: 1146 Bonus ------- None Cogmind --------- Core Integrity 0/400 Matter 217/300 Energy 98/100 System Corruption 2% Temperature Cool (9) Movement Core (50) Location -9/Materials Parts ------- > --- POWER (1) -------- (None) > --- PROPULSION (2) --- (None) > --- UTILITY (4) ------ Visual Processing Unit > --- WEAPON (2) ------- (None) > --- INVENTORY (5) ---- Shield Generator Peak State ------------ > --- POWER ------------ Ion Engine > --- PROPULSION ------- VTOL Module VTOL Module > --- UTILITY ---------- Visual Processing Unit Visual Processing Unit Shield Generator > --- WEAPON ----------- Small Laser > --- INVENTORY -------- (None) [Rating: 12] Favorites ----------- Power Light Ion Engine Engine Light Ion Engine Propulsion Compact Wheel Wheel Compact Wheel Flight Unit VTOL Module Utility Visual Processing Unit Device Sensor Array Storage Small Storage Unit Processor Visual Processing Unit Weapon Small Laser Energy Gun Small Laser Build | -11 -10 -9 ------- Run | Yrd Mat Mat Slots Evolved 2 | . . 2 Power . | . . . Propulsion . | . . . Utility 2 | . . 2 Weapon . | . . . Parts Attached 15 | 6 4 5 Power 4 | 2 . 2 Engine 4 | 2 . 2 Core . | . . . Reactor . | . . . Propulsion 4 | 2 2 . Treads . | . . . Leg . | . . . Wheel 2 | 2 . . Hover . | . . . Flight 2 | . 2 . Utility 6 | 1 2 3 Device 2 | . . 2 Storage 1 | 1 . . Processor 3 | . 2 1 Hackware . | . . . Protection . | . . . Artifact . | . . . Weapon 1 | 1 . . Energy Gun 1 | 1 . . Energy Cannon . | . . . Ballistic Gun . | . . . Ballistic Cannon . | . . . Launcher . | . . . Special Weapon . | . . . Impact Weapon . | . . . Slashing Weapon . | . . . Piercing Weapon . | . . . Special Melee Weapon . | . . . Unidentified Prototypes . | . . . Parts Lost 8 | . . 8 Power 3 | . . 3 Propulsion 2 | . . 2 Utility 1 | . . 1 Weapon 2 | . . 2 Highest Loss Streak 4 | . . 4 To Critical Strikes . | . . . Average Slot Usage (%) 63 | . 71 56 Engine 10 | . 14 8 Wheel 11 | . 24 . Flight 4 | . 3 6 Device 1 | . . 3 Storage 5 | . 13 . Processor 16 | . 1 29 Energy Gun 10 | . 14 8 Peak Build Rating 12 | 5 10 12 Average Rating 6 | 2 5 8 On Entrance 5 | . 5 10 Naked Turns . | . . . Heaviest Build 12 | 9 9 12 Greatest Support 32 | 32 32 8 Greatest Overweight (x) 3 | . . 3 Average Overweight (x) . | . . . Largest Inventory Capacity 8 | 8 8 5 Average Capacity 6 | 6 7 5 Most Carried 5 | 5 4 2 Average Carried 1 | 1 1 1 Final Capacity 8 | 8 5 5 Final Carried 2 | 1 2 1 Class Distribution -------------------- 81% | Mutant 18% | Sprinter Dominant Class ---------------- Mutant | -10/Materials Mutant | -9/Materials Resources | -11 -10 -9 ----------- Run | Yrd Mat Mat Matter Collected 233 | 143 44 46 Remotely . | . . . Salvage Created 224 | . 119 105 Parts 6 | . 6 . Haulers Intercepted . | . . . Recyclers Shooed . | . . . Parts Field Recycled . | . . . Retrieved Matter . | . . . Parts Self-Destructed . | . . . Prevented . | . . . Kills | -11 -10 -9 ------- Run | Yrd Mat Mat Combat Hostiles Destroyed 5 | . 3 2 Guns 5 | . 3 2 Classes Destroyed 2 | . 1 1 Grunt 4 | . 3 1 Sentry 1 | . . 1 Best Kill Streak 3 | . 3 1 Combat Bots Only 3 | . 3 1 Max Kills in Single Turn 1 | . 1 1 Gunslinging . | . . . Exploded . | . . . Melee . | . . . Uniques/NPCs Destroyed . | . . . Combat | -11 -10 -9 -------- Run | Yrd Mat Mat Hostile Shots Fired 116 | . 21 95 Missed 34 | . 7 27 Damage Taken 1043 | . 154 889 Core 461 | . 56 405 Absorbed by Shields . | . . . Regen/Repaired (Parts) 56 | . . 56 Core Remaining (%) 88 | 100 77 . Volleys Fired 39 | . 24 15 Largest 2 | . 1 2 Hottest 60 | . 40 60 Shots Fired 44 | . 24 20 Gun 44 | . 24 20 Cannon . | . . . Launcher . | . . . Special . | . . . Kinetic . | . . . Thermal 44 | . 24 20 Explosive . | . . . Electromagnetic . | . . . Robot Hit Streak 11 | . 5 11 Robot Miss Streak 2 | . 1 2 Penetration Max . | . . . Secondary Targets . | . . . Shots Hit Robots 34 | . 17 17 Core Hits 11 | . 6 5 Critical Kills . | . . . Critical Parts Destroyed . | . . . Critical Strikes . | . . . Melee Attacks . | . . . Impact . | . . . Slashing . | . . . Piercing . | . . . Sneak Attacks . | . . . Combat Hostiles . | . . . Follow-up Attacks . | . . . Damage Inflicted 384 | . 214 170 Guns 384 | . 214 170 Cannons . | . . . Explosions . | . . . Melee . | . . . Ramming . | . . . Kinetic . | . . . Thermal 384 | . 214 170 Explosive . | . . . Electromagnetic . | . . . Impact . | . . . Slashing . | . . . Piercing . | . . . Highest Corruption 2 | . . 2 Average Corruption 1 | . . 1 Corruption Purged . | . . . Corruption Blocked . | . . . Effects 1 | . . 1 Matter Fused 1 | . . 1 Overload Shots . | . . . Overflow Damage . | . . . Projectiles . | . . . Explosions . | . . . Melee . | . . . Knockbacks . | . . . Impact . | . . . Kinetic . | . . . Secondary . | . . . Self-Inflicted Damage . | . . . Shots . | . . . Rammed . | . . . Targets Rammed . | . . . Kicked . | . . . Crushed . | . . . Highest Temperature 84 | . 84 32 Average Temperature 42 | . 62 14 Received Heat Transfer 603 | . 84 519 Siege Activations . | . . . Robots Corrupted . | . . . Combat Hostiles . | . . . Parts Fried . | . . . Impact Corruptions . | . . . Robots Melted . | . . . Combat Hostiles . | . . . Parts Melted 4 | . . 4 Heat Transferred 1008 | . 475 533 Parts Sabotaged . | . . . Parts Stolen . | . . . Parts Stripped . | . . . Power Chain Reactions . | . . . Alert | -11 -10 -9 ------- Run | Yrd Mat Mat Peak Influence 174 | . 115 174 Initial 48 | . . 48 Average 47 | . 41 59 Maximum Alert Level . | . . . Low Security (%) 100 | 100 100 100 Level 1 . | . . . Level 2 . | . . . Level 3 . | . . . Level 4 . | . . . Level 5 . | . . . High Security . | . . . Max Security . | . . . Squads Dispatched 4 | . 2 2 Investigation 3 | . 1 2 Extermination . | . . . Reinforcement 1 | . 1 . Assault . | . . . Garrison . | . . . Intercept . | . . . Searches Triggered . | . . . Construction Impeded . | . . . Haulers Reinforced . | . . . Active Scanning Responses . | . . . Cargo Convoy Interrupts . | . . . Stealth | -11 -10 -9 --------- Run | Yrd Mat Mat Distress Signals . | . . . Communications Jammed . | . . . Distress Signals . | . . . Times Spotted 20 | . 7 13 Peak Tracking Total 8 | . 4 8 Tactical Retreats 3 | . . 3 Traps | -11 -10 -9 ------- Run | Yrd Mat Mat Traps Triggered 1 | . 1 . Indirectly . | . . . Trap Hack Attempts . | . . . Triggered . | . . . Disarmed . | . . . Reprogrammed . | . . . Reused . | . . . Traps Extracted . | . . . Installed . | . . . Triggered . | . . . Machines | -11 -10 -9 ---------- Run | Yrd Mat Mat Machines Disabled . | . . . Max in Single Turn . | . . . Machines Repaired . | . . . Machines Dismantled . | . . . Machines Sabotaged . | . . . Overloaded Fab Kills . | . . . Hacking | -11 -10 -9 --------- Run | Yrd Mat Mat Machines Accessed 6 | . 1 5 Terminals 5 | . 1 4 Fabricators . | . . . Repair Stations 1 | . . 1 Recycling Units . | . . . Scanalyzers . | . . . Garrison Access . | . . . Total Hacks 18 | . 1 17 Successful 8 | . 1 7 Failed 10 | . . 10 Catastrophic 2 | . . 2 Database Lockouts . | . . . Manual . | . . . Terminals 15 | . 1 14 Fabricators . | . . . Repair Stations 3 | . . 3 Recycling Units . | . . . Scanalyzers . | . . . Garrison Access . | . . . Terminal Hacks 5 | . 1 4 Prototype ID Bank 1 | . . 1 Unreport Threat 2 | . . 2 Transport Status 1 | . . 1 Recall Investigation 1 | . 1 . Fabricator Hacks . | . . . Repair Station Hacks 3 | . . 3 Scan Component 1 | . . 1 Repair 1 | . . 1 Refit 1 | . . 1 Recycling Unit Hacks . | . . . Scanalyzer . | . . . Garrison Access Hacks . | . . . Unauthorized Hacks . | . . . Terminals . | . . . Fabricators . | . . . Repair Stations . | . . . Recycling Units . | . . . Scanalyzers . | . . . Garrison Access . | . . . Data Cores Recovered . | . . . Used . | . . . Hacking Detections 5 | . . 5 Full Trace Events 4 | . . 4 Feedback Events 2 | . . 2 Corruption 2 | . . 2 Feedback Blocked . | . . . Robot Schematics Acquired . | . . . Robots Built . | . . . Authchips . | . . . Time . | . . . Total Robot Build Rating . | . . . Part Schematics Acquired . | . . . Parts Built . | . . . Authchips . | . . . Time . | . . . Total Part Build Rating . | . . . Parts Repaired 1 | . . 1 Time 26 | . . 26 Parts Recycled . | . . . Recycled Matter . | . . . Retrieved Matter . | . . . Retrieved Components . | . . . Parts Scanalyzed . | . . . Part Schematics Acquired . | . . . Parts Damaged . | . . . Bothacking | -11 -10 -9 ------------ Run | Yrd Mat Mat Used RIF Installer . | . . . Robots Hacked . | . . . Non-combat . | . . . Combat . | . . . Robot Hacks Applied . | . . . Relay Couplers Released . | . . . Fabnet Peak Effective % . | . . . Robots Rewired . | . . . Allies Hacked . | . . . Hacks Repelled . | . . . Allies | -11 -10 -9 -------- Run | Yrd Mat Mat Total Allies . | . . . Largest Group . | . . . Highest-Rated Group . | . . . Highest-Rated Ally . | . . . Total Orders . | . . . Ally Attacks . | . . . Total Damage . | . . . Kills . | . . . Allies Corrupted . | . . . Allies Melted . | . . . Intel | -11 -10 -9 ------- Run | Yrd Mat Mat Robot Analysis Total . | . . . Derelict Logs Recovered . | . . . Drone Launches . | . . . Drone Recoveries . | . . . Exploration | -11 -10 -9 ------------- Run | Yrd Mat Mat Turns Passed 434 | 36 174 224 Spaces Moved 384 | 32 127 225 Core 139 | 16 . 123 Treads . | . . . Legs . | . . . Wheels 126 | 16 110 . Hover . | . . . Flight 119 | . 17 102 Fastest Speed 32 | 50 32 32 Average Speed 83 | 75 90 79 Slowest Speed 200 | 100 100 200 Overloaded Moves . | . . . Propulsion Burnouts . | . . . Robots Hopped 1 | . 1 . Cave-ins Triggered . | . . . Exploration Rate (%) 16 | 3 20 27 Regions Visited 2 Branch Regions . Pre-discovered Areas . | . . . Known Exits Taken . | . . . Unknown Exits Taken 2 | 1 1 . Scrap Searched . | . . . Spaces Dug . | . . . Terrain Destroyed . | . . . Melee . | . . . Projectile . | . . . AOE . | . . . Terrain Rammed . | . . . Walls Destroyed . | . . . Machines Disabled . | . . . Actions | -11 -10 -9 --------- Run | Yrd Mat Mat Total 455 | 43 161 251 Wait . | . . . Move 380 | 31 124 225 Hop 1 | . 1 . Pick Up 14 | 6 5 3 Fast Attach . | . . . Attach 14 | 5 4 5 Detach 1 | . . 1 Swap 1 | 1 . . Drop 5 | . 3 2 Fire 39 | . 24 15 Melee . | . . . Ram . | . . . Kick . | . . . Crush . | . . . Escape Stasis . | . . . Rewire . | . . . Trap . | . . . Miscellaneous . | . . . Route ------- -11/Scrapyard -10/Materials -9/Materials History --------- Turn | Location | Event 2 | -11/Scrapyard | Discovered new exit (range 16) 37 | -11/Scrapyard | Entered Materials 207 | -10/Materials | Discovered new exit (range 7) 211 | -10/Materials | Entered another Materials area 211 | -9/Materials | Evolved 2 slots: Utility x2 280 | -9/Materials | Repaired Sml. Laser? 312 | -9/Materials | Lost 4 parts (1p2n1w) 353 | -9/Materials | Core integrity fell below 50% 388 | -9/Materials | Core integrity fell below 20% 435 | -9/Materials | Destroyed by G-47 Trooper with Particle Gun Last Messages --------------- Acquired Sensor Array. Acquired Rnf. Ion Engine. Connecting with Terminal... >>Alert(Purge) Purged threat record, alert level lowered. Connecting with Terminal... >>Alert(Purge) Purged threat record, alert level lowered. Feedback: System corruption (+1%). Critical hit (Burn: +37). Backup Laser I destroyed. System corrupted: Matter fused (-6). K-01 Serf collects debris. Sensor Array destroyed. Critical hit (Burn: +37). K-01 Serf collects debris. Discarded Signal Interpreter. Discarded Visual Processing Unit. Rnf. Ion Engine destroyed. K-01 Serf collects debris. Map ----- +----------------------------------------------------+ | #??????????# """ #######??# #?????????# # "" | | #??????????# #######??# #?????????# # "" | | #################"### #??# #?????????# # "" | | #### ########+## + | | # | | # ""T | | ###+#############+### ######## ###+##### """ | | ## ## ##??????# # ## | | ##"S """ ## #???????# #[!! ###### | | ##""" """ ## g #???????# #!!! ""#????? | | ## "" """ ## #???????# #!! Y"#????? | | ## ## #???????# # ""#????? | | ## ## #???????# # #????? | | ############ ] ## ##?????## #####+##????? | | ?????????############ ###+### #### ###???? | | ???????? #???? | | ???????? k % +???? | | ???????? w g #???? | | ????????###### g###+### ########???? | | ?????????????# """ """ ## #######??????????? | | ?????????????# k""" """ ## #????????????????? | | ?????????????# """ """ ## #????????????????? | | ?????????????# ## ""#????????????????? | | ?????????????# ## ""#????????????????? | | ?????????????# """ ## T"#????????????????? | | ?????????????# """ @## ""#????????????????? | | ?????????????? """ ## ""#????????????????? | | ?????????????# !!## #????????????????? | | ?????????????# ^ ! #######????????????????? | | ?????????????# """ #??????????????????????? | | ?????????????# """ #??????????????????????? | | ?????????????# """ #??????????????????????? | | ???????????????? #??????????????????????? | | ??????????????? ??????????????????????? | | ?????????????? #??????????????????????? | | ??????????????# ##### ???????????????????????? | | ??????????????# ????# ???????????????????????? | | ??????????????# ?????# ???????????????????????? | | ??????????????# ??????# ???????????????????????? | | ??????????????????????# ???????????????????????? | | ??????????????????????# ???????????????????????? | | ??????????????????????? ???????????????????????? | | ???????????????????????###???????????????????????? | | ?????????????????????????????????????????????????? | | ?????????????????????????????????????????????????? | | ?????????????????????????????????????????????????? | | ?????????????????????????????????????????????????? | | ?????????????????????????????????????????????????? | | ?????????????????????????????????????????????????? | | ?????????????????????????????????????????????????? | +----------------------------------------------------+ Best States ------------- Heat Dissipation 28 Energy Generation 12 Energy Capacity 265 Matter Stores 238 Matter Capacity 300 Sight Range 18 Robot Scan Range 14 Terrain Scan Density 10 Evasion (%) 63 Item Schematics ----------------- None Robot Schematics ------------------ None Fabricated ------------ Nothing Alien Tech Used ----------------- None Achievements -------------- GoHome() Challenges ------------ None Game ------ Seed CommTrapBeacon Manual? 0 Play Time 00:11:38 Cumulative 5.2 hours Start 2024.08.31 @ 21:02:35 End 2024.08.31 @ 21:11:51 Sessions 1 Manual Loads 0 Difficulty Rogue Special Mode None Game No. 15 Rogue 15 Adventurer 0 Explorer 0 Win Type - Total 0 Types 0/0/0/0/0/0/0/0/0 Lore% 2 Gallery% 9 Achievement% 10 Wizard Run 0 Options --------- Layout 1 ASCII 0 Keyboard 0 Movement Mouse Keybinds 0 Fullscreen 1 Font 24/Smallcaps Map View 50x40 Zoom Use 0% Tactical HUD 0 Map Filters NONE Filters NONE Steam 1 RUN: d9a43bfc-a102-4b53-83ac-dca99dbf6ef3